bitfinex/quotes_SOLUSD_20241223
["timestamp","ask_amount","ask_price","bid_price","bid_amount"]
[1734942814492,6.075,182.75,182.68,33.66000124]
[1734942814693,23.776884,182.77,182.72,33.66000124]
[1734942815309,23.776884,182.78,182.72,33.66000124]
[1734942815698,6.2316,182.79,182.72,33.66000124]
[1734942816011,33.66000124,182.78,182.7,33.66000124]
[1734942816325,33.66000124,182.76,182.68,33.66000124]
[1734942816928,6.2316,182.79,182.72,33.66000124]
[1734942817100,33.66000124,182.82,182.74,33.66000124]
[1734942817422,6.1447,182.83,182.76,33.66000124]
[1734942818299,23.776884,182.82,182.76,33.66000124]
[1734942819131,57.43688524,182.82,182.74,33.66000124]
[1734942819495,23.776884,182.79,182.72,33.66000124]
[1734942821523,33.66000124,182.82,182.74,33.66000124]
[1734942821731,23.776884,182.81,182.74,33.66000124]
[1734942822421,23.776884,182.79,182.72,33.66000124]
[1734942822598,23.776884,182.79,182.7,33.66000124]
[1734942822599,33.66000124,182.76,182.7,33.66000124]
[1734942822799,23.776884,182.75,182.68,33.66000124]
[1734942824929,33.66000124,182.76,182.68,33.66000124]
[1734942825133,23.776884,182.77,182.72,33.66000124]
[1734942825521,33.66000124,182.8,182.73,33.66000124]
[1734942825704,23.776884,182.79,182.73,33.66000124]
[1734942826023,33.66000124,182.8,182.73,33.66000124]
[1734942826211,33.66000124,182.82,182.75,33.66000124]
[1734942828219,23.776884,182.81,182.75,33.66000124]
[1734942828709,6.1447,182.83,182.75,33.66000124]
[1734942829236,23.776884,182.82,182.75,33.66000124]
[1734942829800,35.30570124,182.84,182.72,2.21610779]
[1734942829801,1.6457,182.84,182.79,33.66000124]
[1734942830309,6.056,182.87,182.8,20.70251748]
[1734942831703,20.70251748,182.86,182.8,20.70251748]
[1734942832457,6.056,182.87,182.83,20.70251748]
[1734942832610,1.5922,182.88,182.83,20.70251748]
[1734942832803,1.5922,182.88,182.82,20.70251748]
[1734942833040,6.1909,182.91,182.87,20.70251748]
[1734942834943,6.1909,182.91,182.85,20.70251748]
[1734942836237,6.1909,182.91,182.8,0.82009563]
[1734942836238,20.70251748,182.86,182.8,0.82009563]
[1734942836443,8.1987,182.96,182.74,8.44227934]
[1734942836444,30.164984,182.8,182.74,8.44227934]
[1734942836653,23.776884,182.77,182.74,8.44227934]
[1734942837154,23.776884,182.77,182.69,20.70251748]
[1734942837359,20.70251748,182.76,182.67,20.70251748]
[1734942837511,23.776884,182.73,182.65,20.70251748]
[1734942838220,23.776884,182.73,182.67,20.70251748]
[1734942839520,20.70251748,182.74,182.67,20.70251748]
[1734942839733,44.47940148,182.76,182.67,20.70251748]
[1734942840054,20.70251748,182.73,182.65,20.70251748]
[1734942840228,20.70251748,182.73,182.66,0.8208958]
[1734942841260,20.70251748,182.75,182.68,20.0]
[1734942841728,20.70251748,182.75,182.7,20.0]
[1734942842257,20.70251748,182.77,182.7,20.0]
[1734942842731,20.70251748,182.77,182.71,0.82068954]
[1734942842915,20.70251748,182.78,182.71,0.82068954]
[1734942843723,20.70251748,182.78,182.73,20.0]
[1734942844854,20.70251748,182.79,182.71,21.52320702]
[1734942845139,20.70251748,182.78,182.71,0.82068954]
[1734942845352,20.70251748,182.76,182.69,20.0]
[1734942845530,20.70251748,182.75,182.71,20.0]
[1734942845944,20.70251748,182.76,182.71,20.0]
[1734942846121,20.70251748,182.76,182.69,41.52326374]
[1734942846328,20.70251748,182.77,182.69,41.52326374]
[1734942846547,7.7744,182.85,182.74,20.0]
[1734942846739,20.70251748,182.82,182.74,41.5229713]
[1734942846954,20.70251748,182.82,182.75,20.70251748]
[1734942848025,20.70251748,182.86,182.8,20.0]
[1734942848361,7.7744,182.89,182.81,0.82025427]
[1734942848362,20.70251748,182.87,182.81,0.82025427]
[1734942848950,20.70251748,182.88,182.81,0.82025427]
[1734942849129,20.70251748,182.91,182.85,20.0]
[1734942849315,20.70251748,182.91,182.86,20.0]
[1734942850638,6.4237,182.97,182.87,0.82001859]
[1734942850826,20.70251748,182.93,182.87,0.82001859]
[1734942851411,20.70251748,182.92,182.87,0.82001859]
[1734942851644,20.70251748,182.92,182.88,20.0]
[1734942852628,20.70251748,182.92,182.81,150.3752]
[1734942852629,20.70251748,182.9,182.82,0.81999354]
[1734942852836,20.70251748,182.85,182.78,23.05276183]
[1734942853042,20.70251748,182.83,182.76,20.70251748]
[1734942853643,20.70251748,182.83,182.75,21.52284403]
[1734942853832,20.70251748,182.84,182.76,20.70251748]
[1734942854044,20.70251748,182.84,182.78,20.70251748]
[1734942854968,20.70251748,182.87,182.79,20.70251748]
[1734942855169,20.70251748,182.89,182.81,20.70251748]
[1734942855341,20.70251748,182.89,182.82,0.820152]
[1734942856146,20.70251748,182.89,182.83,20.70251748]
[1734942856346,20.70251748,182.91,182.84,0.82009086]
[1734942856563,20.70251748,182.93,182.86,20.70251748]
[1734942856768,20.70251748,182.93,182.86,21.52249376]
[1734942857139,20.70251748,182.92,182.86,0.81997628]
[1734942857646,20.70251748,182.93,182.86,0.81997628]
[1734942857847,20.70251748,182.94,182.86,21.52249376]
[1734942858059,20.70251748,182.95,182.88,20.70251748]
[1734942858376,20.70251748,182.95,182.89,0.81984803]
[1734942859244,20.70251748,182.96,182.89,0.81984803]
[1734942859449,20.70251748,182.96,182.85,20.0]
[1734942859450,20.70251748,182.95,182.87,20.70251748]
[1734942859775,20.70251748,182.95,182.86,20.8198897]
[1734942859776,20.70251748,182.93,182.86,20.8198897]
[1734942860137,20.70251748,182.95,182.87,20.70251748]
[1734942860340,20.70251748,182.95,182.88,0.81986058]
[1734942860570,20.70251748,182.97,182.89,20.70251748]
[1734942860959,20.70251748,182.97,182.9,0.81980478]
[1734942861858,20.70251748,182.96,182.9,0.81980478]
[1734942862240,20.70251748,182.94,182.88,20.0]
[1734942862543,20.70251748,182.93,182.87,0.81985407]
[1734942862746,20.70251748,182.93,182.88,20.0]
[1734942864847,20.70251748,182.93,182.86,20.70251748]
[1734942865290,20.70251748,182.95,182.89,20.0]
[1734942865585,20.70251748,182.95,182.89,20.81989946]
[1734942866142,20.70251748,182.97,182.89,20.81989946]
[1734942869274,20.70251748,182.97,182.89,20.0]
[1734942869450,20.70251748,182.95,182.89,20.0]
[1734942875087,23.776884,182.97,182.88,0.8199684]
[1734942875255,20.70251748,182.94,182.89,20.0]
[1734942876275,20.70251748,182.94,182.87,0.81991165]
[1734942876464,20.70251748,182.9,182.84,0.82000071]
[1734942876790,4.0993,182.96,182.82,1.6206]
[1734942876791,20.70251748,182.88,182.82,1.6206]
[1734942877285,6.4688,182.93,182.8,0.82014611]
[1734942877286,20.70251748,182.86,182.8,0.82014611]
[1734942878371,20.70251748,182.86,182.81,20.0]
[1734942878870,4.1006,182.9,182.81,20.0]
[1734942878871,20.70251748,182.88,182.81,20.0]
[1734942879074,20.70251748,182.9,182.82,21.52276191]
[1734942880799,10.5687,182.93,182.82,20.70251748]
[1734942880800,20.70251748,182.88,182.82,20.70251748]
[1734942881102,20.70251748,182.88,182.8,41.52270121]
[1734942881759,20.70251748,182.9,182.82,20.70251748]
[1734942881962,20.70251748,182.9,182.83,0.82015616]
[1734942882373,20.70251748,182.92,182.84,20.70251748]
[1734942882572,20.70251748,182.93,182.88,20.0]
[1734942882801,20.70251748,182.95,182.88,20.0]
[1734942883001,20.70251748,182.95,182.87,21.52248428]
[1734942883172,20.70251748,182.95,182.88,0.81991077]
[1734942885311,20.70251748,182.96,182.9,20.0]
[1734942885497,20.70251748,182.96,182.9,0.81977665]
[1734942885694,4.7699179,183.0,182.9,0.81977665]
[1734942885895,0.6715179,183.0,182.99,20.82800748]
[1734942886071,23.46915138,183.13,183.02,20.0]
[1734942886072,20.70251748,183.11,183.02,20.0]
[1734942886277,20.70251748,183.11,183.03,21.521753]
[1734942886783,20.70251748,183.09,183.01,20.70251748]
[1734942887493,20.70251748,183.09,183.01,21.5218295]
[1734942888789,20.70251748,183.11,183.03,20.70251748]
[1734942888994,20.70251748,183.11,183.03,21.52174014]
[1734942889988,20.70251748,183.11,183.03,20.70251748]
[1734942890419,20.70251748,183.14,183.06,40.70251748]
[1734942894405,20.70251748,183.14,183.06,20.70251748]
[1734942894703,20.70251748,183.14,183.06,21.52162854]
[1734942897108,20.70251748,183.12,183.04,40.70251748]
[1734942897310,20.70251748,183.12,183.04,41.52163087]
[1734942898410,20.70251748,183.08,183.0,20.70251748]
[1734942899914,20.70251748,183.08,183.01,21.52185028]
[1734942900098,4.0955,183.13,183.03,20.70251748]
[1734942900099,20.70251748,183.1,183.03,20.70251748]
[1734942900410,20.70251748,183.04,182.93,7.5889]
[1734942900580,20.70251748,183.02,182.94,20.70251748]
[1734942900984,20.70251748,183.07,183.0,20.70251748]
[1734942901214,20.70251748,183.1,183.02,20.70251748]
[1734942902210,20.70251748,183.09,183.02,20.70251748]
[1734942903219,27.872584,183.12,183.0,20.70251748]
[1734942903220,20.70251748,183.07,183.0,20.70251748]
[1734942903591,20.70251748,183.09,183.01,0.81936468]
[1734942903995,20.70251748,183.05,182.98,20.70251748]
[1734942905113,20.70251748,183.03,182.96,20.70251748]
[1734942905319,31.968184,183.12,182.93,7.5889]
[1734942905320,20.70251748,183.01,182.93,7.5889]
[1734942906320,20.70251748,183.01,182.94,20.70251748]
[1734942909201,20.70251748,183.01,182.93,1.5462]
[1734942909631,20.70251748,182.99,182.9,20.70251748]
[1734942909803,20.70251748,182.95,182.88,28.61211748]
[1734942910011,20.70251748,182.95,182.88,1.5428]
[1734942910305,20.70251748,182.93,182.86,20.70251748]
[1734942910907,20.70251748,182.95,182.88,20.70251748]
[1734942912600,20.70251748,183.0,182.92,20.70251748]
[1734942912909,20.70251748,183.01,182.93,20.70251748]
[1734942913117,20.70251748,183.0,182.92,20.70251748]
[1734942913308,20.70251748,183.01,182.93,20.70251748]
[1734942913707,20.70251748,183.03,182.95,20.70251748]
[1734942915105,20.70251748,183.05,182.97,20.70251748]
[1734942916600,20.70251748,183.05,182.99,20.70251748]
[1734942916904,1.5347,183.11,183.01,20.70251748]
[1734942917105,20.70251748,183.1,183.02,20.70251748]
[1734942917303,20.70251748,183.07,182.99,20.70251748]
[1734942917820,20.70251748,183.08,183.0,20.70251748]
[1734942918217,20.70251748,183.09,183.01,20.70251748]
[1734942918418,44.47940148,183.08,183.0,20.70251748]
[1734942918627,48.57610148,183.08,183.0,20.70251748]
[1734942918944,20.70251748,183.1,183.02,20.70251748]
[1734942919104,20.70251748,183.12,183.04,20.70251748]
[1734942919527,20.70251748,183.12,183.05,20.70251748]
[1734942919735,20.70251748,183.1,183.03,20.70251748]
[1734942921725,23.776884,183.12,183.05,20.70251748]
[1734942925244,6.8183179,183.18,183.03,6.5255]
[1734942925445,27.52083538,183.18,183.1,20.70251748]
[1734942925640,21.37403538,183.18,183.1,20.70251748]
[1734942926144,0.6715179,183.18,183.12,20.70251748]
[1734942926445,20.70251748,183.15,183.08,20.70251748]
[1734942926840,20.70251748,183.16,183.09,20.70251748]
[1734942927943,44.47940148,183.17,183.09,20.70251748]
[1734942928247,23.776884,183.17,183.1,20.70251748]
[1734942929651,44.47940148,183.17,183.1,20.70251748]
[1734942930459,21.37403538,183.18,183.11,20.70251748]
[1734942930629,20.70251748,183.17,183.1,20.70251748]
[1734942930831,44.47940148,183.17,183.1,20.70251748]
[1734942931936,23.776884,183.17,183.1,20.70251748]
[1734942932150,36.67448599,183.17,183.1,12.89760199]
[1734942932339,12.89760199,183.16,183.09,12.89760199]
[1734942932952,36.67448599,183.15,183.08,12.89760199]
[1734942933160,12.89760199,183.14,183.06,12.89760199]
[1734942933327,12.89760199,183.13,183.06,12.89760199]
[1734942934654,12.89760199,183.14,183.06,12.89760199]
[1734942935156,12.89760199,183.14,183.07,12.89760199]
[1734942935346,12.89760199,183.15,183.08,12.89760199]
[1734942935840,23.776884,183.14,183.08,12.89760199]
[1734942936228,23.776884,183.17,183.08,13.71672026]
[1734942936443,12.89760199,183.15,183.08,12.89760199]
[1734942936754,36.67448599,183.14,183.07,12.89760199]
[1734942936928,23.776884,183.14,183.07,12.89760199]
[1734942940055,12.89760199,183.17,183.09,12.89760199]
[1734942940276,23.776884,183.17,183.09,12.89760199]
[1734942940423,12.89760199,183.16,183.09,12.89760199]
[1734942940627,12.89760199,183.16,183.07,12.89760199]
[1734942941760,23.776884,183.15,183.07,12.89760199]
[1734942942143,12.89760199,183.16,183.09,12.89760199]
[1734942942555,13.56911989,183.18,183.09,12.89760199]
[1734942942760,23.776884,183.17,183.09,12.89760199]
[1734942947140,12.89760199,183.16,183.09,12.89760199]
[1734942947467,23.776884,183.15,183.09,12.89760199]
[1734942949362,23.776884,183.17,183.09,12.89760199]
[1734942949938,0.6715179,183.18,183.11,12.89760199]
[1734942951034,0.6715179,183.18,183.13,12.89760199]
[1734942951461,13.56911989,183.18,183.11,12.89760199]
[1734942954550,23.776884,183.17,183.11,12.89760199]
[1734942955263,23.776884,183.17,183.09,12.89760199]
[1734942955562,12.89760199,183.14,183.07,12.89760199]
[1734942955768,23.776884,183.13,183.07,12.89760199]
[1734942957170,36.67448599,183.1,182.99,0.81921394]
[1734942957467,10.1007,183.12,183.01,14.48080199]
[1734942957468,23.776884,183.08,183.01,14.48080199]
[1734942957883,12.89760199,183.07,183.0,12.89760199]
[1734942958050,23.776884,183.06,182.99,12.89760199]
[1734942958381,23.776884,183.06,183.0,12.89760199]
[1734942958678,23.776884,183.06,183.01,12.89760199]
[1734942958980,23.776884,183.07,183.01,12.89760199]
[1734942959472,23.776884,183.07,182.97,1.5868]
[1734942959473,23.776884,183.07,183.0,12.89760199]
[1734942961289,12.89760199,183.06,183.0,12.89760199]
[1734942961590,23.776884,183.05,182.98,12.89760199]
[1734942962979,23.776884,183.05,183.0,12.89760199]
[1734942963676,12.89760199,183.08,183.0,12.89760199]
[1734942963858,12.89760199,183.09,183.02,12.89760199]
[1734942964059,12.89760199,183.11,183.04,12.89760199]
[1734942964274,12.89760199,183.11,182.98,0.81938817]
[1734942964579,12.89760199,183.09,183.01,12.89760199]
[1734942965583,23.776884,183.1,183.03,12.89760199]
[1734942966286,12.89760199,183.13,183.05,12.89760199]
[1734942966460,12.89760199,183.15,183.07,12.89760199]
[1734942967488,12.89760199,183.17,183.09,12.89760199]
[1734942967687,0.6715179,183.18,183.11,12.89760199]
[1734942968564,23.776884,183.17,183.11,12.89760199]
[1734942969203,0.6715179,183.18,183.11,12.89760199]
[1734942970473,0.6715179,183.18,183.13,12.89760199]
[1734942972773,0.6715179,183.18,183.12,12.89760199]
[1734942973614,0.6715179,183.18,183.13,12.89760199]
[1734942974816,0.6715179,183.18,183.14,12.89760199]
[1734942977305,36.67448599,183.17,183.07,2.34293821]
[1734942977511,36.67448599,183.17,183.1,12.89760199]
[1734942977807,0.6715179,183.18,183.11,12.89760199]
[1734942977987,0.6715179,183.18,183.13,12.89760199]
[1734942978189,0.6715179,183.18,183.14,12.89760199]
[1734942978701,0.6715179,183.18,183.13,12.89760199]
[1734942982510,0.6715179,183.18,183.15,12.89760199]
[1734942982691,0.6715179,183.18,183.17,12.89760199]
[1734942984910,0.6715179,183.18,183.15,20.0]
[1734942985121,0.6715179,183.18,183.14,12.89760199]
[1734942985420,0.6715179,183.18,183.15,12.89760199]
[1734942985628,0.6715179,183.18,183.15,32.89760199]
[1734942987129,0.6715179,183.18,183.15,12.89760199]
[1734942989834,0.6715179,183.18,183.16,12.89760199]
[1734942990005,0.6715179,183.18,183.14,12.89760199]
[1734942990701,0.6715179,183.18,183.12,12.89760199]
[1734942991226,23.776884,183.17,183.1,12.89760199]
[1734942991390,23.776884,183.13,183.06,12.89760199]
[1734942991731,27.872384,183.13,183.06,12.89760199]
[1734942992018,40.76998599,183.13,183.05,12.89760199]
[1734942992204,12.89760199,183.09,183.02,12.89760199]
[1734942992391,36.67448599,183.06,182.97,2.14413608]
[1734942992597,36.67448599,183.06,182.98,12.89760199]
[1734942992803,23.776884,183.06,183.0,12.89760199]
[1734942993863,23.776884,183.09,183.03,12.89760199]
[1734942993985,1.5091,183.11,183.06,12.89760199]
[1734942994190,23.776884,183.11,183.06,12.89760199]
[1734942995991,6.4299,183.12,183.06,12.89760199]
[1734942996212,23.776884,183.11,183.06,12.89760199]
[1734942996412,23.776884,183.11,183.04,12.89760199]
[1734942996601,12.89760199,183.08,183.0,12.89760199]
[1734942996804,23.776884,183.07,183.0,12.89760199]
[1734942997120,23.776884,183.05,182.94,7.6352]
[1734942997417,23.776884,183.03,182.97,12.89760199]
[1734942997644,23.776884,183.05,183.0,12.89760199]
[1734942998021,23.776884,183.09,183.04,12.89760199]
[1734942998220,23.776884,183.09,183.05,12.89760199]
[1734942998421,6.4299,183.12,183.06,12.89760199]
[1734942999133,6.4299,183.12,183.07,12.89760199]
[1734943000220,6.4299,183.12,183.07,20.64220058]
[1734943000555,1.5162,183.15,183.09,20.64220058]
[1734943000763,27.06000058,183.17,183.09,20.64220058]
[1734943001637,23.776884,183.16,183.09,20.64220058]
[1734943002445,6.4178,183.17,183.11,20.64220058]
[1734943002629,0.6715179,183.18,183.13,20.64220058]
[1734943003233,0.6715179,183.18,183.14,20.64220058]
[1734943003428,0.6715179,183.18,183.15,20.64220058]
[1734943013960,0.6715179,183.18,183.17,20.64220058]
[1734943015651,0.6715179,183.18,183.17,21.46087624]
[1734943018072,0.6715179,183.18,183.17,21.58636624]
[1734943018376,1.5128,183.28,183.2,20.0]
[1734943018539,6.1396,183.3,183.26,20.64220058]
[1734943019869,4.0918,183.29,183.22,20.64220058]
[1734943020034,20.0,183.27,183.18,0.81840664]
[1734943020234,23.776884,183.22,183.14,12.89018694]
[1734943020435,1.6154,183.23,183.16,12.89018694]
[1734943020632,1.6154,183.23,183.18,12.89018694]
[1734943020953,23.776884,183.26,183.2,12.89018694]
[1734943021150,1.6244,183.28,183.15,12.89018694]
[1734943021151,6.1396,183.3,183.25,12.89018694]
[1734943021486,1.6244,183.33,183.27,12.89018694]
[1734943022571,23.776884,183.32,183.27,12.89018694]
[1734943022967,1.6244,183.33,183.27,12.89018694]
[1734943023376,6.6324,183.35,183.3,12.89018694]
[1734943025172,2.87008255,183.36,183.33,12.89018694]
[1734943025669,2.87008255,183.36,183.35,12.89018694]
[1734943026039,2.87008255,183.36,183.35,13.70803058]
[1734943026863,2.87008255,183.36,183.35,12.89018694]
[1734943027568,2.87008255,183.36,183.34,12.89018694]
[1734943027869,2.87008255,183.36,183.35,12.89018694]
[1734943029245,1.11781656,183.36,183.35,13.7080998]
[1734943029445,1.11781656,183.36,183.35,13.8335898]
[1734943029661,1.11781656,183.36,183.35,13.7080998]
[1734943030858,1.11781656,183.36,183.35,37.6104738]
[1734943031876,1.11781656,183.36,183.35,174.3104738]
[1734943032085,1.11781656,183.36,183.35,173.49256094]
[1734943032448,1.11781656,183.36,183.35,149.59018694]
[1734943032646,1.11781656,183.36,183.35,173.49256094]
[1734943032875,1.11781656,183.36,183.35,36.79256094]
[1734943033073,0.138,183.38,183.37,173.49256094]
[1734943033738,6.0961,183.51,183.38,0.12549]
[1734943033943,12.89018694,183.55,183.48,12.89018694]
[1734943034255,83.1715179,183.72,183.48,12.89018694]
[1734943034256,6.3264,183.65,183.53,36.79256094]
[1734943034459,4.0831,183.69,183.62,12.89018694]
[1734943034650,4.0831,183.69,183.6,12.89018694]
[1734943034846,4.0831,183.69,183.62,12.89018694]
[1734943035277,0.6715179,183.72,183.68,12.89018694]
[1734943036306,0.6715179,183.72,183.67,20.50825945]
[1734943037575,0.6715179,183.72,183.69,20.50825945]
[1734943037776,0.6715179,183.72,183.67,20.50825945]
[1734943037998,0.6715179,183.72,183.6,21.32467014]
[1734943037999,21.17977735,183.72,183.65,20.50825945]
[1734943038210,21.17977735,183.72,183.63,20.50825945]
[1734943038708,23.776884,183.71,183.63,20.50825945]
[1734943039010,23.776884,183.69,183.61,20.50825945]
[1734943040709,4.0831,183.68,183.61,20.50825945]
[1734943040891,23.776884,183.67,183.61,20.50825945]
[1734943041581,26.53665945,183.66,183.59,20.50825945]
[1734943041804,23.776884,183.65,183.59,20.50825945]
[1734943042115,23.776884,183.65,183.56,20.50825945]
[1734943042116,27.860684,183.65,183.56,20.50825945]
[1734943042317,23.776884,183.63,183.56,20.50825945]
[1734943043703,23.776884,183.61,183.56,20.50825945]
[1734943048918,4.0845,183.62,183.56,20.50825945]
[1734943049287,23.776884,183.61,183.58,20.50825945]
[1734943049490,4.0845,183.62,183.58,20.50825945]
[1734943050028,6.0284,183.66,183.58,20.50825945]
[1734943050228,4.0838,183.65,183.6,20.50825945]
[1734943050799,23.776884,183.64,183.6,20.50825945]
[1734943051118,8.1671,183.67,183.6,20.50825945]
[1734943051821,6.6022,183.71,183.66,20.50825945]
[1734943052019,6.6022,183.71,183.68,20.50825945]
[1734943052205,4.082,183.74,183.68,20.50825945]
[1734943052616,20.50825945,183.74,183.66,20.50825945]
[1734943052826,4.0825,183.71,183.64,20.50825945]
[1734943053426,23.776884,183.7,183.64,20.50825945]
[1734943055528,4.0825,183.71,183.64,20.50825945]
[1734943056234,4.0825,183.71,183.63,12.82301077]
[1734943057692,23.776884,183.7,183.63,12.82301077]
[1734943059325,13.49452867,183.72,183.63,12.82301077]
[1734943060039,13.49452867,183.72,183.65,12.82301077]
[1734943060599,17.57682867,183.72,183.65,12.82301077]
[1734943060796,4.0827,183.7,183.63,12.82301077]
[1734943062946,4.0831,183.68,183.63,12.82301077]
[1734943063303,0.6715179,183.72,183.65,12.82301077]
[1734943063532,0.6715179,183.72,183.67,12.82301077]
[1734943063837,0.6715179,183.72,183.65,12.82301077]
[1734943065645,4.0825,183.71,183.59,0.81658826]
[1734943065805,36.59989477,183.7,183.62,12.82301077]
[1734943068740,6.1527,183.68,183.58,20.0]
[1734943068957,18.97571077,183.68,183.6,12.82301077]
[1734943069524,12.82301077,183.66,183.58,12.82301077]
[1734943069838,23.776884,183.65,183.58,12.82301077]
[1734943070145,12.82301077,183.66,183.58,12.82301077]
[1734943070434,18.97571077,183.68,183.6,12.82301077]
[1734943070736,4.0834,183.67,183.6,12.82301077]
[1734943073143,23.776884,183.66,183.58,12.82301077]
[1734943073451,4.0838,183.65,183.58,12.82301077]
[1734943077556,4.0832,183.68,183.62,12.82301077]
[1734943080052,1.5244,183.7,183.64,12.82301077]
[1734943081730,4.0829,183.69,183.62,12.82301077]
[1734943082034,12.82301077,183.66,183.58,12.82301077]
[1734943082834,12.82301077,183.64,183.56,12.82301077]
[1734943083046,12.82301077,183.59,183.47,136.7]
[1734943083236,12.82301077,183.59,183.51,12.82301077]
[1734943083757,16.90831077,183.59,183.51,12.82301077]
[1734943083992,4.0853,183.59,183.52,12.82301077]
[1734943084335,16.90831077,183.59,183.52,12.82301077]
[1734943084546,4.0853,183.59,183.53,12.82301077]
[1734943085058,4.0853,183.59,183.52,12.82301077]
[1734943085964,12.82301077,183.57,183.5,12.82301077]
[1734943086136,12.82301077,183.57,183.49,12.82301077]
[1734943086652,19.27211077,183.55,183.48,12.82301077]
[1734943086858,6.4491,183.55,183.48,12.82301077]
[1734943087569,6.4491,183.55,183.5,12.82301077]
[1734943088472,22.97291077,183.59,183.5,12.82301077]
[1734943088636,10.1499,183.59,183.54,12.82301077]
[1734943090674,6.0647,183.59,183.55,12.82301077]
[1734943090834,6.0647,183.59,183.46,0.12549]
[1734943090835,4.0845,183.62,183.56,12.82301077]
[1734943091163,4.0845,183.62,183.55,12.82301077]
[1734943091666,16.90751077,183.62,183.54,12.82301077]
[1734943092463,12.82301077,183.61,183.54,12.82301077]
[1734943092662,12.82301077,183.62,183.55,12.82301077]
[1734943094353,5.6106,183.63,183.55,12.82301077]
[1734943094554,5.6106,183.63,183.57,12.82301077]
[1734943094944,5.6106,183.63,183.56,12.82301077]
[1734943096073,5.6106,183.63,183.57,12.82301077]
[1734943096759,5.6106,183.63,183.56,12.82301077]
[1734943098262,6.5836,183.64,183.6,12.82301077]
[1734943098571,128.66986795,183.66,183.61,12.82301077]
[1734943098774,128.66986795,183.66,183.59,12.82301077]
[1734943098946,128.66986795,183.66,183.61,12.82301077]
[1734943099143,128.66986795,183.66,183.53,156.7]
[1734943099468,128.66986795,183.66,183.65,12.82301077]
[1734943099469,124.58626795,183.66,183.65,12.82301077]
[1734943101871,124.58626795,183.66,183.63,12.82301077]
[1734943102678,124.58626795,183.66,183.61,12.82301077]
[1734943103675,124.58626795,183.66,183.63,12.82301077]
[1734943105386,124.58626795,183.66,183.6,12.82301077]
[1734943105387,124.58626795,183.66,183.65,12.82301077]
[1734943114388,124.58626795,183.66,183.64,12.82301077]
[1734943114974,38.18189477,183.65,183.53,12.823011]
[1734943115207,12.82301077,183.63,183.56,12.82301077]
[1734943115583,1.582,183.65,183.58,12.82301077]
[1734943117320,109.37724068,183.66,183.58,12.82301077]
[1734943119086,12.82301077,183.64,183.57,12.82301077]
[1734943119286,12.82301077,183.62,183.55,12.82301077]
[1734943119900,23.776884,183.6,183.53,12.82301077]
[1734943120099,36.59989477,183.6,183.53,12.82301077]
[1734943120605,23.776884,183.61,183.53,12.82301077]
[1734943120929,4.0849,183.6,183.53,12.82301077]
[1734943121111,23.776884,183.59,183.53,12.82301077]
[1734943121413,23.776884,183.59,183.51,12.82301077]
[1734943122218,23.776884,183.57,183.51,12.82301077]
[1734943122419,30.383684,183.57,183.49,12.82301077]
[1734943122610,12.82301077,183.56,183.49,12.82301077]
[1734943122990,23.776884,183.55,183.49,12.82301077]
[1734943123332,6.6068,183.57,183.51,12.82301077]
[1734943124738,6.6068,183.57,183.53,12.82301077]
[1734943125027,16.90771077,183.61,183.53,12.82301077]
[1734943128125,12.82301077,183.59,183.53,12.82301077]
[1734943128915,12.82301077,183.59,183.51,12.82301077]
[1734943129299,12.82301077,183.57,183.49,12.82301077]
[1734943129504,12.82301077,183.55,183.47,12.82301077]
[1734943129710,19.23141077,183.53,183.45,12.82301077]
[1734943130230,19.23141077,183.53,183.46,12.82301077]
[1734943133110,12.82301077,183.57,183.48,12.82301077]
[1734943137195,10.1436,183.58,183.48,12.82301077]
[1734943137196,12.82301077,183.55,183.48,12.82301077]
[1734943140326,23.776884,183.54,183.48,12.82301077]
[1734943141703,23.776884,183.54,183.46,12.82301077]
[1734943141904,27.863284,183.54,183.46,12.82301077]
[1734943143303,10.1436,183.58,183.48,12.82301077]
[1734943143533,10.1436,183.58,183.5,12.82301077]
[1734943143534,22.96661077,183.58,183.5,12.82301077]
[1734943144418,18.3144,183.58,183.41,1.6363]
[1734943144613,18.3144,183.58,183.39,143.1727]
[1734943144614,19.26241077,183.5,183.42,12.82301077]
[1734943145010,12.82301077,183.48,183.4,12.82301077]
[1734943145606,23.776884,183.47,183.4,12.82301077]
[1734943145811,12.82301077,183.46,183.38,12.82301077]
[1734943146534,14.44551077,183.48,183.38,12.82301077]
[1734943146739,14.44551077,183.48,183.4,12.82301077]
[1734943147238,6.4394,183.5,183.44,12.82301077]
[1734943148165,6.4394,183.5,183.46,12.82301077]
[1734943149732,6.4394,183.5,183.44,12.82301077]
[1734943150247,6.4394,183.5,183.46,12.82301077]
[1734943150845,1.5163,183.53,183.46,12.82301077]
[1734943154254,1.5163,183.53,183.44,12.82301077]
[1734943154762,12.82301077,183.52,183.44,12.82301077]
[1734943158161,9.73934015,183.53,183.45,8.22304015]